fUSD/lending_fUSD_20251003
["ID","MTS","AMOUNT","RATE_DAILY","PERIOD"]
[388917216,1759495839345,-4213.16311476,0.00019151,3]
[388917217,1759495839356,-542.63189783,0.00019151,3]
[388917218,1759495839389,-804.25016406,0.00019151,3]
[388917219,1759495839402,-835.55,0.00019151,3]
[388917220,1759495839413,-1942.9070334,0.00019151,3]
[388917221,1759495839452,-647.42536545,0.00019151,3]
[388917222,1759495839463,-450.44926836,0.00019151,3]
[388917223,1759495839508,-543.82993042,0.00019151,3]
[388917224,1759495839565,-801.11426275,0.00019151,3]
[388917225,1759495839622,-10560.0,0.00019151,3]
[388917226,1759495839633,-10074.49692237,0.00019151,3]
[388917238,1759495842530,-1873.85460132,0.00019078,2]
[388917239,1759495842539,-159.61398746,0.00019078,2]
[388917240,1759495842587,-120.50753052,0.00019078,2]
[388917241,1759495842601,-2627.83407112,0.00019151,3]
[388917242,1759495842616,-28437.54736378,0.00019151,3]
[388917243,1759495842646,-4635.0,0.00019151,3]
[388917244,1759495842661,-1211.2,0.00019151,3]
[388917245,1759495843455,-16208.48237614,0.00019151,3]
[388917246,1759495843468,-341918.35604418,0.00019151,3]
[388917250,1759495845455,-450.85402016,0.00018023,2]
[388917251,1759495845467,-839.9099692,0.00018023,2]
[388917252,1759495845479,-996.92408764,0.00018023,2]
[388917253,1759495845488,-736.64384478,0.00019151,3]
[388917254,1759495845531,-895.90485395,0.00019151,3]
[388917255,1759495845542,-17951.01653183,0.00019151,3]
[388917256,1759495845554,-14067.86480158,0.00019151,3]
[388917257,1759495845566,-692.6102177,0.00019151,3]
[388917258,1759495845578,-345.8703875,0.00019151,3]
[388917259,1759495845617,-5883.81423708,0.00019151,3]
[388917260,1759495845629,-10301.11446732,0.00019151,3]
[388917275,1759495960599,158.78,0.00025443,120]
[388917276,1759495960703,158.78,0.00028624,120]
[388917277,1759495961132,-302.8,0.00018794,2]
[388917278,1759495961153,-303.06,0.00018794,2]
[388917279,1759495961175,-1278.879,0.00018794,2]
[388917280,1759495961196,-160.787,0.00018794,2]
[388917286,1759496314929,367.0,0.00030136,120]
[388917287,1759496340480,7289.04,0.00016602,2]
[388917288,1759496436845,7289.04,0.00025,60]
[388917289,1759496542818,759.9203275,0.00030136,120]
[388917290,1759496646441,-150.0,0.00017938,2]
[388917291,1759496646464,-1000.0,0.00017946,2]
[388917292,1759496646486,-421.0,0.00017953,2]
[388917300,1759497031826,-180.36643569,0.0001716,2]
[388917301,1759497031836,-81.15356431,0.00017259,2]
[388917302,1759497031871,-325.34808872,0.00017259,2]
[388917314,1759497032197,-4.09769103,0.00017259,2]
[388917315,1759497032208,-764.10687629,0.00017259,2]
[388917316,1759497032254,-25.29377965,0.00017259,2]
[388917317,1759497032263,-300.0,0.00017259,2]
[388917318,1759497032273,-300.0,0.00017259,2]
[388917319,1759497032282,-76.32008171,0.00017259,2]
[388917320,1759497032294,-458.27926235,0.00017259,2]
[388917321,1759497033146,-665.40065594,0.00017259,2]
[388917322,1759497033156,-150.0,0.0001726,2]
[388917323,1759497033166,-150.0,0.0001726,2]
[388917324,1759497033175,-150.62133042,0.0001726,2]
[388917325,1759497033187,-150.0,0.0001726,2]
[388917326,1759497033196,-150.0,0.0001726,2]
[388917327,1759497033205,-150.00000001,0.0001726,2]
[388917328,1759497033216,-150.0,0.0001726,2]
[388917329,1759497033226,-150.0,0.0001726,2]
[388917330,1759497033236,-197.90876288,0.0001726,2]
[388917331,1759497033246,-150.0,0.0001726,2]
[388917332,1759497033255,-150.00000001,0.0001726,2]
[388917333,1759497033265,-190.48046651,0.0001726,2]
[388917334,1759497033275,-150.0,0.0001726,2]
[388917335,1759497033284,-150.0,0.0001726,2]
[388917336,1759497033295,-150.0,0.0001726,2]
[388917337,1759497033304,-150.0,0.0001726,2]
[388917338,1759497033314,-150.0,0.00017534,2]
[388917339,1759497033323,-150.0,0.0001774,2]
[388917340,1759497033333,-150.0,0.0001774,2]
[388917341,1759497033343,-150.0,0.00017808,2]
[388917342,1759497033353,-666.0,0.00017844,3]
[388917343,1759497033362,-200.0,0.00017866,2]
[388917344,1759497033371,-200.0,0.00017881,2]
[388917345,1759497033381,-109.65,0.00017953,2]
[388917346,1759497033390,-150.0,0.00018082,2]
[388917347,1759497033399,-150.0,0.00018219,2]
[388917348,1759497033409,-150.0,0.00018219,2]
[388917349,1759497033419,-150.0,0.00018219,2]
[388917350,1759497033429,-150.0,0.00018219,2]
[388917351,1759497033439,-1910.88287784,0.00018261,2]
[388917352,1759497033448,-150.99,0.00018261,2]
[388917353,1759497033458,-150.0,0.00018356,2]
[388917354,1759497033468,-825.4,0.00018356,2]
[388917355,1759497033477,-150.0,0.0001863,2]
[388917356,1759497033487,-150.0,0.00018699,2]
[388917357,1759497033496,-150.0,0.00018699,2]
[388917358,1759497033506,-828.67113476,0.00018711,2]
[388917359,1759497033516,-421.9224,0.0001874,2]
[388917360,1759497033526,-440.64,0.0001877,2]
[388917361,1759497033535,-430.22,0.0001877,2]
[388917362,1759497033545,-432.36,0.0001877,2]
[388917363,1759497033554,-440.89,0.0001877,2]
[388917364,1759497033564,-434.32,0.0001877,2]
[388917365,1759497033573,-430.01,0.0001877,2]
[388917366,1759497033583,-440.93,0.0001877,2]
[388917367,1759497033591,-441.48,0.0001877,2]
[388917368,1759497033601,-300.36,0.0001877,2]
[388917369,1759497033610,-300.89,0.0001877,2]
[388917370,1759497033620,-441.77,0.0001877,2]
[388917371,1759497033629,-301.38,0.0001877,2]
[388917372,1759497033639,-428.19,0.00018771,2]
[388917373,1759497033648,-437.59,0.00018771,2]
[388917374,1759497033657,-432.64,0.00018771,2]
[388917375,1759497033666,-427.7,0.00018771,2]
[388917376,1759497033676,-304.55,0.00018771,2]
[388917377,1759497033687,-439.5,0.00018771,2]
[388917378,1759497033696,-441.0,0.00018771,2]
[388917379,1759497033705,-305.31,0.00018771,2]
[388917380,1759497033715,-428.59,0.00018771,2]
[388917381,1759497033725,-441.29,0.00018771,2]
[388917382,1759497033734,-438.34,0.00018771,2]
[388917383,1759497033747,-439.02,0.00018771,2]
[388917384,1759497033757,-302.73,0.00018771,2]
[388917385,1759497033766,-433.7,0.00018771,2]
[388917386,1759497033776,-438.74,0.00018771,2]
[388917387,1759497033787,-441.1,0.00018771,2]
[388917388,1759497033796,-435.91,0.00018771,2]
[388917389,1759497033806,-431.91,0.00018772,2]
[388917390,1759497033817,-444.17,0.00018772,2]
[388917391,1759497033827,-444.54,0.00018772,2]
[388917392,1759497033837,-303.33,0.00018772,2]
[388917393,1759497033847,-444.51,0.00018772,2]
[388917394,1759497033856,-427.68,0.00018772,2]
[388917395,1759497033866,-444.48,0.00018772,2]
[388917396,1759497033875,-437.68,0.00018772,2]
[388917397,1759497033885,-304.25,0.00018772,2]
[388917398,1759497033894,-432.38,0.00018772,2]
[388917399,1759497033903,-444.7,0.00018772,2]
[388917400,1759497033913,-301.14,0.00018772,2]
[388917401,1759497033922,-441.55,0.00018772,2]
[388917402,1759497033932,-439.7,0.00018772,2]
[388917403,1759497033942,-300.32,0.00018772,2]
[388917404,1759497033952,-442.46,0.00018772,2]
[388917405,1759497033962,-428.37,0.00018772,2]
[388917406,1759497033972,-443.24,0.00018772,2]
[388917407,1759497033982,-435.06,0.00018772,2]
[388917408,1759497033991,-427.68,0.00018772,2]
[388917409,1759497034001,-438.11,0.00018772,2]
[388917410,1759497034011,-436.64,0.00018773,2]
[388917411,1759497034021,-443.78,0.00018773,2]
[388917412,1759497034030,-436.53,0.00018773,2]
[388917413,1759497034039,-301.92,0.00018773,2]
[388917414,1759497034049,-429.59,0.00018773,2]
[388917415,1759497034060,-300.23,0.00018773,2]
[388917416,1759497034069,-439.28,0.00018773,2]
[388917417,1759497034079,-441.47,0.00018773,2]
[388917418,1759497034088,-444.68,0.00018773,2]
[388917419,1759497034098,-439.68,0.00018773,2]
[388917420,1759497034108,-305.88,0.00018773,2]
[388917421,1759497034117,-435.13,0.00018773,2]
[388917422,1759497034127,-437.18,0.00018773,2]
[388917423,1759497034136,-431.9,0.00018773,2]
[388917424,1759497034146,-427.59,0.00018773,2]
[388917425,1759497034156,-432.4,0.00018773,2]
[388917426,1759497034165,-444.67,0.00018773,2]
[388917427,1759497034175,-193.40413417,0.00018774,2]
[388917428,1759497034188,-110.09586583,0.00018774,2]
[388917429,1759497034197,-300.21,0.00018774,2]
[388917430,1759497034207,-305.19,0.00018774,2]
[388917431,1759497034216,-305.09,0.00018774,2]
[388917432,1759497034226,-432.2,0.00018774,2]
[388917433,1759497034235,-438.86,0.00018774,2]
[388917434,1759497034244,-441.89,0.00018774,2]
[388917435,1759497034253,-428.2,0.00018774,2]
[388917436,1759497034263,-305.95,0.00018774,2]
[388917437,1759497034273,-440.21,0.00018774,2]
[388917438,1759497034282,-1090.0,0.00018774,2]
[388917439,1759497034292,-813.5,0.00018778,2]
[388917440,1759497034302,-175.62,0.00018778,2]
[388917441,1759497034312,-300.56,0.00018794,2]
[388917442,1759497034321,-420.0,0.00018846,2]
[388917443,1759497034332,-302.05,0.00018874,2]
[388917444,1759497034341,-150.0,0.00018904,2]
[388917445,1759497034350,-1200.0,0.00018939,2]
[388917446,1759497034359,-4620.46293043,0.00019,3]
[388917447,1759497034369,-5523.8841521,0.00019,2]
[388917448,1759497034379,-545.07,0.00019,2]
[388917449,1759497034389,-167.81,0.00019,2]
[388917450,1759497034399,-175.53,0.00019,2]
[388917451,1759497034409,-151.0,0.00019067,2]
[388917452,1759497034418,-151.0,0.00019067,2]
[388917453,1759497034438,-151.0,0.00019067,2]
[388917454,1759497034447,-151.0,0.00019067,2]
[388917455,1759497034456,-151.0,0.00019067,2]
[388917456,1759497034466,-151.0,0.00019067,2]
[388917457,1759497034475,-151.0,0.00019067,2]
[388917458,1759497034485,-159.85002816,0.00019078,2]
[388917459,1759497034494,-156.75166994,0.00019078,2]
[388917460,1759497034504,-40062.76873458,0.00019078,2]
[388917461,1759497034513,-20306.25698254,0.00019078,2]
[388917462,1759497034522,-337.30344294,0.00019078,2]
[388917463,1759497034531,-829.23848603,0.00019078,2]
[388917464,1759497034540,-158.78,0.00019082,2]
[388917465,1759497034549,-500.0,0.00019085,2]
[388917466,1759497034559,-1090.14,0.000191,2]
[388917467,1759497034568,-2340.86022,0.00019104,2]
[388917468,1759497034577,-571.1059524,0.00019146,2]
[388917469,1759497034586,-1109.4919777,0.00019146,2]
[388917470,1759497034596,-301.75,0.0001915,2]
[388917471,1759497034605,-302.2,0.00019151,2]
[388917472,1759497034615,-305.92,0.00019151,2]
[388917473,1759497034625,-24019.65963431,0.00019151,3]
[388917474,1759497037456,-1323.27193708,0.00019151,3]
[388917475,1759497037512,-699.2,0.00019151,3]
[388917476,1759497037524,-354.69200001,0.00019151,3]
[388917477,1759497037570,-640.93868497,0.00019151,3]
[388917478,1759497037581,-697.70855139,0.00019151,3]
[388917479,1759497037633,-79538.1126433,0.00019151,3]
[388917497,1759497039699,-5367.85,0.00019151,3]
[388917498,1759497039711,-606.30291818,0.00019151,3]
[388917499,1759497039722,-1409.68779057,0.00019151,3]
[388917500,1759497039734,-6510.6893842,0.00019151,3]
[388917501,1759497039780,-12506.90234,0.00019151,3]
[388917502,1759497039792,-436.6974908,0.00019151,3]
[388917503,1759497039803,-900.68520752,0.00019151,3]
[388917504,1759497039817,-6126.39,0.00019151,3]
[388917507,1759497039835,-2421.15393194,0.00019151,3]
[388917754,1759497042737,-3389.0356914,0.00019105,2]
[388917755,1759497042750,-23063.08473728,0.00019151,3]
[388917756,1759497042764,-497.07913007,0.00019151,3]
[388917757,1759497042841,-102224.0,0.00019151,3]
[388917758,1759497042952,-383230.00000198,0.00019151,3]
[388917759,1759497043008,-2407.5316868,0.00019151,3]
[388917797,1759497046178,-40626.89471462,0.00019151,3]
[388917807,1759497046396,-2321.8,0.00019151,3]
[388917808,1759497046407,-70356.4804447,0.00019151,3]
[388917823,1759497046569,-3450.0000003,0.00019151,3]
[388917839,1759497046712,-358.01289717,0.00019151,3]
[388917842,1759497046728,-531.57268011,0.00019151,3]
[388918036,1759497135370,2000.0,0.00030136,120]
[388918040,1759497313477,688.2,0.00016438,2]
[388918050,1759497910190,11474.33083473,0.000154,2]
[388918052,1759498065493,160.69,8.874e-05,2]
[388918053,1759498065765,160.69,9.614e-05,2]
[388918054,1759498066054,160.69,0.00010353,2]
[388918055,1759498066133,160.69,0.00011093,2]
[388918056,1759498066346,160.69,0.00011832,2]
[388918057,1759498066562,160.69,0.00012572,2]
[388918058,1759498066793,160.69,0.00013311,2]
[388918059,1759498067047,160.69,0.00014051,2]
[388918060,1759498067250,160.69,0.0001479,2]
[388918061,1759498067471,160.69,0.0001553,2]
[388918062,1759498067739,160.69,0.00016269,2]
[388918067,1759498124953,5978.037212,0.00015,2]
[388918101,1759498232042,-153.03348657,0.000169,2]
[388918102,1759498232053,-319.71108843,0.000169,2]
[388918103,1759498232068,-500.0,0.00016973,2]
[388918104,1759498232078,-501.39059094,0.00016973,2]
[388918105,1759498232087,-500.0,0.00016973,2]
[388918106,1759498232097,-500.0,0.00016973,2]
[388918107,1759498232107,-500.0,0.00016973,2]
[388918108,1759498232116,-500.0,0.00016973,2]
[388918109,1759498232126,-500.0,0.00016973,2]
[388918110,1759498232135,-500.0,0.00016973,2]
[388918111,1759498232146,-500.0,0.00016973,2]
[388918112,1759498232155,-365.39763518,0.00016973,2]
[388918113,1759498232167,-134.60236482,0.00016973,2]
[388918114,1759498232177,-500.0,0.00016973,2]
[388918115,1759498232186,-341.20699503,0.00016973,2]
[388918116,1759498232198,-161.49127256,0.00016973,2]
[388918117,1759498232208,-500.0,0.00016973,2]
[388918118,1759498232217,-151.0,0.00016997,2]
[388918119,1759498232237,-120.8569659,0.00016998,2]
[388918120,1759498232248,-343.81921159,0.00016998,2]
[388918121,1759498232287,-735.32382251,0.00016998,2]
[388918122,1759498232297,-555.78270282,0.00016999,2]
[388918123,1759498232307,-305.60093857,0.00016999,2]
[388918124,1759498232316,-500.0,0.00016999,2]
[388918125,1759498232325,-500.0,0.00016999,2]
[388918126,1759498232335,-500.0,0.00016999,2]
[388918127,1759498232345,-500.0,0.00016999,2]
[388918128,1759498232355,-500.0,0.00016999,2]
[388918129,1759498232364,-500.0,0.00016999,2]
[388918130,1759498232374,-500.0,0.00016999,2]
[388918131,1759498232384,-500.0,0.00016999,2]
[388918132,1759498232395,-202.74833573,0.00016999,2]
[388918133,1759498232404,-500.0,0.00016999,2]
[388918134,1759498232414,-500.0,0.00016999,2]
[388918135,1759498232424,-500.0,0.00016999,2]
[388918136,1759498232433,-500.0,0.00016999,2]
[388918137,1759498232443,-500.0,0.00016999,2]
[388918138,1759498232452,-500.0,0.00016999,2]
[388918140,1759498232462,-500.0,0.00016999,2]
[388918142,1759498232472,-500.0,0.00016999,2]
[388918144,1759498232482,-530.31354413,0.00016999,2]
[388918146,1759498232492,-500.0,0.00016999,2]
[388918149,1759498232501,-500.0,0.00016999,2]
[388918152,1759498232510,-554.86265553,0.00016999,2]
[388918154,1759498232520,-499.99999999,0.00016999,2]
[388918156,1759498232529,-500.0,0.00016999,2]
[388918158,1759498232539,-282.04073467,0.00016999,2]
[388918159,1759498232548,-500.0,0.00016999,2]
[388918160,1759498232558,-284.06484351,0.00016999,2]
[388918161,1759498232567,-500.0,0.00016999,2]
[388918162,1759498232577,-286.95923185,0.00016999,2]
[388918163,1759498232586,-500.0,0.00016999,2]
[388918164,1759498232595,-500.0,0.00016999,2]
[388918165,1759498232605,-500.0,0.00016999,2]
[388918166,1759498232614,-13592.48979083,0.00017,2]
[388918167,1759498233480,-46203.69536328,0.00017,2]
[388918168,1759498233493,-556.8968615,0.00017,2]
[388918169,1759498233702,-368.63773204,0.00017,2]
[388918170,1759498233857,-853.99715375,0.00017,2]
[388918171,1759498233892,-6205.19937044,0.00017,2]
[388918172,1759498233903,-568.9141402,0.00017,2]
[388918175,1759498237779,-8271.34038037,0.00017,2]
[388918221,1759498239841,-151.10528242,0.0001699,2]
[388918222,1759498239851,-216.93677969,0.00017,2]
[388918223,1759498239959,-265.96,0.00017,2]
[388918224,1759498239971,-7498.79999999,0.00017,2]
[388918232,1759498242816,-550.05300345,0.00017,2]
[388918233,1759498242827,-1643.48587624,0.00017,2]
[388918234,1759498242882,-1249.38438053,0.00017,2]
[388918235,1759498242937,-2930.91111726,0.00017,2]
[388918236,1759498243074,-63457.6617348,0.00017,2]
[388918245,1759498245767,-437.67673661,0.00017,2]
[388918246,1759498245869,-1243.05419636,0.00017,2]
[388918247,1759498245979,-5213.41035741,0.00017,2]
[388918248,1759498245994,-2934.17513162,0.00017,2]
[388918249,1759498246039,-18566.3886742,0.00017,2]
[388918250,1759498246142,-9326.29760035,0.00017,2]
[388918254,1759498246490,-7018.53512722,0.00017,2]
[388918256,1759498246503,-3129.7,0.00017,2]
[388918258,1759498246516,-6851.01266722,0.00017,2]
[388918260,1759498246530,-5638.06001,0.00017,2]
[388918261,1759498246544,-3137.77462868,0.00017,2]
[388918262,1759498290152,150.0,0.00027397,120]
[388918263,1759498294728,-185.71,0.0001666,2]
[388918264,1759498296365,-194.76652254,0.0001666,2]
[388918265,1759498300172,-151.36,0.0001666,2]
[388918266,1759498303838,-154.73,0.0001666,2]
[388918267,1759498307084,-539.28387129,0.0001666,2]
[388918268,1759498309687,-302.11260617,0.0001666,2]
[388918269,1759498309709,-60.66698659,0.0001666,2]
[388918270,1759498311834,-102.25401341,0.0001666,2]
[388918277,1759498628648,1975.11492633,0.00030137,120]
[388918278,1759498639841,509.78,0.00016471,2]
[388918280,1759498780829,250.0,0.00016352,2]
[388918281,1759498833342,150.0,0.00016248,2]
[388918284,1759499003886,164.86,0.00016199,2]
[388918285,1759499050559,818.0,0.00030136,120]
[388918291,1759499114373,150.0,0.00015288,2]
[388918292,1759499114431,150.0,0.00015288,2]
[388918293,1759499114521,150.0,0.00015288,2]
[388918299,1759499120292,150.0,0.00015288,2]
[388918300,1759499121671,150.0,0.00015288,2]
[388918301,1759499136819,150.0,0.00015288,2]
[388918303,1759499195191,7727.71,0.00016369,2]
[388918304,1759499221778,400.0,0.000166,6]
[388918311,1759499406075,-337.71158533,0.0001666,2]
[388918312,1759499420994,150.0,0.00016069,2]
[388918330,1759499432057,-110.64541467,0.0001666,2]
[388918331,1759499432066,-188.73058888,0.00016699,2]
[388918332,1759499432076,-653.17621362,0.000167,2]
[388918333,1759499432086,-474.48634537,0.000167,2]
[388918334,1759499432098,-70.67563618,0.000167,2]
[388918335,1759499432107,-473.88690636,0.000167,6]
[388918336,1759499432119,-426.11309364,0.000167,6]
[388918337,1759499432129,-250.0,0.00016717,2]
[388918338,1759499432140,-300.0,0.00016799,2]
[388918339,1759499432151,-224.13093672,0.00016799,2]
[388918340,1759499432162,-337.39749068,0.00016799,2]
[388918341,1759499432173,-176.4715726,0.00016799,2]
[388918342,1759499432183,-300.0,0.00016799,2]
[388918343,1759499432192,-300.0,0.00016799,2]
[388918344,1759499432201,-809.38982581,0.000168,2]
[388918345,1759499432211,-1300.0,0.000168,6]
[388918346,1759499432220,-2301.91983672,0.000168,2]
[388918347,1759499432229,-152.76420038,0.00016847,2]
[388918348,1759499432242,-500.0,0.00016873,2]
[388918349,1759499432251,-500.0,0.00016873,2]
[388918350,1759499432261,-500.0,0.00016873,2]
[388918351,1759499432271,-500.0,0.00016873,2]
[388918352,1759499432280,-500.0,0.00016873,2]
[388918353,1759499432290,-500.0,0.00016873,2]
[388918354,1759499432299,-500.0,0.00016873,2]
[388918355,1759499432308,-500.377846,0.00016873,2]
[388918356,1759499432318,-500.0,0.00016873,2]
[388918357,1759499432327,-500.0,0.00016873,2]
[388918358,1759499432337,-501.49068223,0.00016873,2]
[388918359,1759499432348,-500.0,0.00016873,2]
[388918360,1759499432357,-500.0,0.00016873,2]
[388918361,1759499432366,-500.0,0.00016873,2]
[388918362,1759499432376,-500.0,0.00016873,2]
[388918363,1759499432386,-500.0,0.00016873,2]
[388918364,1759499432396,-500.0,0.00016873,2]
[388918365,1759499432405,-500.0,0.00016873,2]
[388918366,1759499432415,-500.0,0.00016873,2]
[388918367,1759499432425,-500.0,0.00016873,2]
[388918368,1759499432434,-179.2,0.0001689,2]
[388918369,1759499432444,-179.2,0.0001689,2]
[388918370,1759499432453,-215.57627471,0.0001689,2]
[388918371,1759499432465,-1088.56372529,0.0001689,2]
[388918372,1759499432474,-1304.14,0.0001689,2]
[388918373,1759499432484,-151.10528243,0.0001689,2]
[388918374,1759499432496,-500.0,0.00016899,2]
[388918375,1759499432506,-200.87146229,0.00016899,2]
[388918376,1759499432517,-198.84539046,0.00016899,2]
[388918377,1759499432527,-397.42851427,0.00016899,2]
[388918378,1759499432537,-500.0,0.00016899,2]
[388918379,1759499432547,-171.68507459,0.00016899,2]
[388918380,1759499432558,-500.0,0.00016899,2]
[388918381,1759499432568,-392.25706045,0.00016899,2]
[388918382,1759499432578,-500.0,0.00016899,2]
[388918383,1759499432587,-500.0,0.00016899,2]
[388918384,1759499432596,-500.0,0.00016899,2]
[388918385,1759499432606,-500.0,0.00016899,2]
[388918386,1759499432616,-500.0,0.00016899,2]
[388918387,1759499432625,-500.0,0.00016899,2]
[388918388,1759499432635,-500.0,0.00016899,2]
[388918389,1759499432644,-500.0,0.00016899,2]
[388918390,1759499432654,-500.0,0.00016899,2]
[388918391,1759499432663,-475.91095623,0.00016899,2]
[388918392,1759499432673,-500.0,0.00016899,2]
[388918393,1759499432682,-500.0,0.00016899,2]
[388918394,1759499432692,-500.0,0.00016899,2]
[388918395,1759499432701,-500.0,0.00016899,2]
[388918396,1759499432710,-500.0,0.00016899,2]
[388918397,1759499432720,-500.0,0.00016899,2]
[388918398,1759499432730,-500.0,0.00016899,2]
[388918399,1759499432740,-500.0,0.00016899,2]
[388918400,1759499432750,-500.0,0.00016899,2]
[388918401,1759499432759,-500.0,0.00016899,2]
[388918402,1759499432768,-500.0,0.00016899,2]
[388918403,1759499432778,-500.0,0.00016899,2]
[388918404,1759499432787,-500.0,0.00016899,2]
[388918405,1759499432797,-500.0,0.00016899,2]
[388918406,1759499432806,-500.0,0.00016899,2]
[388918407,1759499432816,-500.0,0.00016899,2]
[388918408,1759499432825,-500.0,0.00016899,2]
[388918409,1759499432834,-500.0,0.00016899,2]
[388918410,1759499432844,-500.0,0.00016899,2]
[388918411,1759499432853,-595.80908037,0.00016899,2]
[388918412,1759499432862,-507.46119453,0.00016899,2]
[388918413,1759499432872,-500.0,0.00016899,2]
[388918414,1759499432881,-500.0,0.00016899,2]
[388918415,1759499432890,-500.0,0.00016899,2]
[388918416,1759499432900,-500.0,0.00016899,2]
[388918417,1759499432909,-500.0,0.00016899,2]
[388918418,1759499432919,-500.0,0.00016899,2]
[388918419,1759499432929,-500.0,0.00016899,2]
[388918420,1759499432939,-500.0,0.00016899,2]
[388918421,1759499432949,-136048.15242282,0.000169,2]
[388918422,1759499432961,-26550.85988868,0.000169,2]
[388918423,1759499432971,-1800.0,0.000169,6]
[388918424,1759499432980,-75321.70541992,0.000169,2]
[388918425,1759499433023,-619.35433313,0.000169,2]
[388918426,1759499433034,-1994.47020268,0.000169,2]
[388918427,1759499433045,-300.0,0.000169,2]
[388918428,1759499433063,-1017.9370502,0.000169,2]
[388918429,1759499433076,-863.65353583,0.000169,2]
[388918430,1759499433087,-812.46050268,0.000169,2]
[388918431,1759499435393,-500.0,0.00016873,2]
[388918432,1759499435404,-841.83418491,0.000169,2]
[388918433,1759499435415,-415.3259997,0.000169,2]
[388918469,1759499438655,-1445.58767714,0.000169,2]
[388918470,1759499438667,-865.15710188,0.000169,2]
[388918471,1759499438693,-2632.01999999,0.000169,2]
[388918472,1759499438809,-345.87173433,0.000169,2]
[388918473,1759499438822,-670.3099998,0.000169,2]
[388918474,1759499438834,-487.74502,0.000169,2]
[388918475,1759499438846,-44458.23195707,0.000169,2]
[388918476,1759499438858,-431.69598331,0.000169,2]
[388918477,1759499438870,-683.078,0.000169,2]
[388918478,1759499438892,-120612.84072701,0.000169,2]
[388918479,1759499438905,-4752.51851957,0.000169,2]
[388918480,1759499438917,-402.74231899,0.000169,2]
[388918481,1759499438965,-478.485,0.000169,2]
[388918482,1759499438978,-851.1814562,0.000169,2]
[388918483,1759499439019,-11574.39984868,0.000169,2]
[388918493,1759499439964,-1974.87000027,0.000169,2]
[388918494,1759499439976,-5368.675,0.000169,2]
[388918495,1759499440012,-756.2,0.000169,2]
[388918496,1759499440060,-400.0,0.000169,2]
[388918497,1759499440073,-445.66979882,0.000169,2]
[388918498,1759499440117,-6578.62088625,0.000169,2]
[388918499,1759499440129,-1608.49131959,0.000169,2]
[388918500,1759499440151,-771.32556962,0.000169,2]
[388918501,1759499440163,-256.15442993,0.000169,2]
[388918502,1759499440175,-2409.8,0.000169,2]
[388918504,1759499440190,-7054.99908943,0.000169,2]
[388918505,1759499440202,-33756.5522061,0.000169,2]
[388918511,1759499443259,-355.27405806,0.000169,2]
[388918512,1759499443271,-550.03331089,0.000169,2]
[388918513,1759499443283,-402.45892736,0.000169,2]
[388918515,1759499443741,-1921.65492579,0.000169,2]
[388918516,1759499443754,-380.78043422,0.000169,2]
[388918517,1759499443781,-1512.42644318,0.000169,2]
[388918519,1759499445960,-268.85112633,0.000169,2]
[388918521,1759499445972,-1210.03678806,0.000169,2]
[388918523,1759499445983,-898.0,0.000169,2]
[388918535,1759499446082,-3187.69,0.000169,2]
[388918542,1759499446137,-6314.26903983,0.000169,2]
[388918544,1759499446149,-8010.4793428,0.000169,2]
[388918546,1759499446160,-9450.38684683,0.000169,2]